fUSD/lending_fUSD_20250420
["ID","MTS","AMOUNT","RATE_DAILY","PERIOD"]
[358443413,1745149914128,-500.0,0.00043835,30]
[358443414,1745149914163,-500.0,0.00043835,30]
[358443415,1745149914197,-500.0,0.00043835,30]
[358443416,1745149914236,-500.0,0.00043835,30]
[358443417,1745149914272,-500.0,0.00043835,30]
[358443418,1745149914308,-500.0,0.00043835,30]
[358443419,1745149914342,-500.0,0.00043835,30]
[358443420,1745149914377,-500.0,0.00043835,30]
[358443421,1745149914411,-500.0,0.00043835,30]
[358443422,1745149914446,-500.0,0.00043835,30]
[358443423,1745149914480,-500.0,0.00043835,30]
[358443424,1745149914515,-198.08849572,0.00043835,30]
[358443425,1745149914549,-550.88321826,0.00043835,30]
[358443426,1745149914584,-500.0,0.00043835,30]
[358443427,1745149914618,-614.89,0.00043835,30]
[358443428,1745149914654,-614.89,0.00043835,30]
[358443429,1745149914688,-614.89,0.00043835,30]
[358443430,1745149914723,-614.89,0.00043835,30]
[358443431,1745149914756,-614.89,0.00043835,30]
[358443432,1745149914789,-614.89,0.00043835,30]
[358443433,1745149914823,-614.89,0.00043835,30]
[358443434,1745149914856,-614.89,0.00043835,30]
[358443435,1745149914890,-614.89,0.00043835,30]
[358443436,1745149914925,-614.89,0.00043835,30]
[358443437,1745149914960,-614.89,0.00043835,30]
[358443438,1745149914994,-614.89,0.00043835,30]
[358443439,1745149915028,-614.89,0.00043835,30]
[358443440,1745149915062,-614.89,0.00043835,30]
[358443441,1745149915095,-614.89,0.00043835,30]
[358443442,1745149915130,-614.89,0.00043835,30]
[358443443,1745149915164,-614.89,0.00043835,30]
[358443444,1745149915197,-614.89,0.00043835,30]
[358443445,1745149915235,-614.89,0.00043835,30]
[358443446,1745149915269,-614.89,0.00043835,30]
[358443447,1745149915302,-614.89,0.00043835,30]
[358443448,1745149915336,-614.89,0.00043835,30]
[358443449,1745149915370,-614.89,0.00043835,30]
[358443450,1745149915404,-615.0,0.00043835,30]
[358443451,1745149915438,-500.0,0.00043835,30]
[358443452,1745149915472,-500.0,0.00043835,30]
[358443453,1745149915507,-500.0,0.00043835,30]
[358443454,1745149915543,-500.0,0.00043835,30]
[358443455,1745149915578,-500.0,0.00043835,30]
[358443456,1745149915612,-500.0,0.00043835,30]
[358443457,1745149915645,-516.22252859,0.00043835,30]
[358443458,1745149915679,-500.0,0.00043835,30]
[358443459,1745149915713,-500.0,0.00043835,30]
[358443460,1745149915749,-500.0,0.00043835,30]
[358443461,1745149915782,-389.28905039,0.00043835,30]
[358443462,1745149915815,-500.0,0.00043835,30]
[358443463,1745149915848,-500.0,0.00043835,30]
[358443464,1745149915881,-500.0,0.00043835,30]
[358443465,1745149915914,-500.0,0.00043835,30]
[358443466,1745149915948,-500.0,0.00043835,30]
[358443467,1745149915982,-500.0,0.00043835,30]
[358443468,1745149916015,-500.0,0.00043835,30]
[358443469,1745149916050,-500.0,0.00043835,30]
[358443470,1745149916084,-500.0,0.00043835,30]
[358443471,1745149916116,-500.0,0.00043835,30]
[358443472,1745149916149,-496.94281031,0.00043835,30]
[358443473,1745149916182,-500.0,0.00043835,30]
[358443474,1745149916217,-500.0,0.00043835,30]
[358443475,1745149916250,-500.0,0.00043835,30]
[358443476,1745149916284,-500.0,0.00043835,30]
[358443477,1745149916318,-500.0,0.00043835,30]
[358443478,1745149916350,-500.0,0.00043835,30]
[358443479,1745149916384,-500.0,0.00043835,30]
[358443480,1745149916418,-500.0,0.00043835,30]
[358443481,1745149916471,-500.0,0.00043835,30]
[358443482,1745149916505,-500.0,0.00043835,30]
[358443483,1745149916540,-500.0,0.00043835,30]
[358443484,1745149916573,-500.0,0.00043835,30]
[358443485,1745149916606,-500.0,0.00043835,30]
[358443486,1745149916639,-500.0,0.00043835,30]
[358443487,1745149916672,-500.0,0.00043835,30]
[358443488,1745149916705,-500.0,0.00043835,30]
[358443489,1745149916739,-500.0,0.00043835,30]
[358443490,1745149916771,-500.0,0.00043835,30]
[358443491,1745149916805,-249.98,0.00043835,30]
[358443492,1745149916838,-500.0,0.00043835,30]
[358443493,1745149916870,-500.0,0.00043835,30]
[358443494,1745149916903,-500.0,0.00043835,30]
[358443495,1745149916936,-500.0,0.00043835,30]
[358443496,1745149916968,-500.0,0.00043835,30]
[358443497,1745149917001,-500.0,0.00043835,30]
[358443498,1745149917034,-500.0,0.00043835,30]
[358443499,1745149917067,-500.0,0.00043835,30]
[358443500,1745149917099,-500.0,0.00043835,30]
[358443501,1745149917132,-410.00039054,0.00043835,30]
[358443502,1745149917166,-500.0,0.00043835,30]
[358443503,1745149917198,-500.0,0.00043835,30]
[358443504,1745149917234,-500.0,0.00043835,30]
[358443505,1745149917267,-500.0,0.00043835,30]
[358443506,1745149917299,-500.0,0.00043835,30]
[358443507,1745149917333,-500.0,0.00043835,30]
[358443508,1745149917365,-500.0,0.00043835,30]
[358443509,1745149917400,-500.0,0.00043835,30]
[358443510,1745149917434,-500.0,0.00043835,30]
[358443511,1745149917468,-500.0,0.00043835,30]
[358443512,1745149917502,-500.0,0.00043835,30]
[358443513,1745149917536,-500.0,0.00043835,30]
[358443514,1745149917568,-500.0,0.00043835,30]
[358443515,1745149917602,-500.0,0.00043835,30]
[358443516,1745149917634,-500.0,0.00043835,30]
[358443517,1745149917668,-500.0,0.00043835,30]
[358443518,1745149917701,-500.0,0.00043835,30]
[358443519,1745149917734,-500.0,0.00043835,30]
[358443520,1745149917765,-200.88581543,0.00043835,30]
[358443521,1745149917798,-552.46,0.00043835,30]
[358443522,1745149917830,-872.24,0.00043835,30]
[358443523,1745149917862,-872.24,0.00043835,30]
[358443524,1745149917893,-872.24,0.00043835,30]
[358443525,1745149917925,-872.24,0.00043835,30]
[358443526,1745149917956,-872.24,0.00043835,30]
[358443527,1745149917988,-872.24,0.00043835,30]
[358443528,1745149918020,-872.24,0.00043835,30]
[358443529,1745149918052,-872.24,0.00043835,30]
[358443530,1745149918084,-872.24,0.00043835,30]
[358443531,1745149918117,-872.24,0.00043835,30]
[358443532,1745149918149,-1774.44,0.00043835,30]
[358443533,1745149918181,-1104.1,0.00046575,120]
[358443534,1745149918219,-181.0,0.00049589,60]
[358443535,1745149918251,-181.0,0.00049589,60]
[358443536,1745149918285,-181.0,0.00049589,60]
[358443537,1745149918320,-181.0,0.00049589,60]
[358443538,1745149918354,-181.0,0.00049589,60]
[358443539,1745149918390,-181.0,0.00049589,60]
[358443540,1745149918424,-181.0,0.00049589,60]
[358443541,1745149918458,-181.0,0.00049589,60]
[358443542,1745149918494,-153.0,0.00049589,60]
[358443543,1745149918528,-153.0,0.00049589,60]
[358443544,1745149918563,-153.0,0.00049589,60]
[358443545,1745149918598,-153.0,0.00049589,60]
[358443546,1745149918632,-153.0,0.00049589,60]
[358443547,1745149918665,-153.0,0.00049589,60]
[358443548,1745149918699,-153.0,0.00049589,60]
[358443549,1745149918731,-153.0,0.00049589,60]
[358443550,1745149918763,-153.0,0.00049589,60]
[358443551,1745149918793,-153.0,0.00049589,60]
[358443552,1745149918824,-153.0,0.00049589,60]
[358443553,1745149918856,-153.0,0.00049589,60]
[358443554,1745149918888,-153.0,0.00049589,60]
[358443555,1745149918920,-153.0,0.00049589,60]
[358443556,1745149918952,-359.70553467,0.00053821,120]
[358443557,1745149918984,-368.79854266,0.00053821,120]
[358443558,1745149919017,-1104.1,0.00054794,120]
[358443559,1745149919049,-1139.82,0.00057427,30]
[358443560,1745149919093,872.24,0.00043835,30]
[358443561,1745149919128,1774.44,0.00043835,30]
[358443562,1745149919173,872.24,0.00043835,30]
[358443563,1745149919263,872.24,0.00043835,30]
[358443564,1745149919298,1774.44,0.00043835,30]
[358443565,1745149919333,872.24,0.00043835,30]
[358443566,1745149919374,872.24,0.00043835,30]
[358443567,1745149919414,872.24,0.00043835,30]
[358443568,1745149919452,1774.44,0.00043835,30]
[358443569,1745149919502,1774.44,0.00043835,30]
[358443570,1745149919546,1774.44,0.00043835,30]
[358443571,1745149919586,872.24,0.00043835,30]
[358443572,1745149919629,500.0,0.00043835,30]
[358443573,1745149919670,872.24,0.00043835,30]
[358443574,1745149919706,1774.44,0.00043835,30]
[358443575,1745149919742,500.0,0.00043835,30]
[358443576,1745149919782,500.0,0.00043835,30]
[358443577,1745149919820,872.24,0.00043835,30]
[358443578,1745149919854,1774.44,0.00043835,30]
[358443579,1745149919976,500.0,0.00043835,30]
[358443580,1745149920013,500.0,0.00043835,30]
[358443581,1745149920056,872.24,0.00043835,30]
[358443582,1745149920093,1774.44,0.00043835,30]
[358443583,1745149920131,500.0,0.00043835,30]
[358443584,1745149920167,500.0,0.00043835,30]
[358443585,1745149920205,1774.44,0.00043835,30]
[358443586,1745149920246,872.24,0.00043835,30]
[358443587,1745149920284,500.0,0.00043835,30]
[358443588,1745149920323,500.0,0.00043835,30]
[358443589,1745149920361,1774.44,0.00043835,30]
[358443590,1745149920400,872.24,0.00043835,30]
[358443591,1745149920441,500.0,0.00043835,30]
[358443592,1745149920480,500.0,0.00043835,30]
[358443593,1745149920521,1774.44,0.00043835,30]
[358443594,1745149920559,872.24,0.00043835,30]
[358443595,1745149920596,500.0,0.00043835,30]
[358443596,1745149920636,872.4,0.00043835,30]
[358443597,1745149920675,500.0,0.00043835,30]
[358443598,1745149920716,1774.44,0.00043835,30]
[358443599,1745149920754,324.48,0.00043835,30]
[358443600,1745149920795,500.0,0.00043835,30]
[358443601,1745149920833,1774.44,0.00043835,30]
[358443602,1745149920875,500.0,0.00043835,30]
[358443603,1745149920912,1774.44,0.00043835,30]
[358443604,1745149920955,500.0,0.00043835,30]
[358443605,1745149920996,1774.44,0.00043835,30]
[358443606,1745149921034,500.0,0.00043835,30]
[358443607,1745149921070,1774.44,0.00043835,30]
[358443608,1745149921111,500.0,0.00043835,30]
[358443609,1745149921147,1774.44,0.00043835,30]
[358443610,1745149921189,413.22296702,0.00043835,30]
[358443611,1745149921226,1774.44,0.00043835,30]
[358443612,1745149921267,1774.44,0.00043835,30]
[358443613,1745149921308,1774.44,0.00043835,30]
[358443614,1745149921349,1774.44,0.00043835,30]
[358443615,1745149921385,150.0,0.00053821,120]
[358443616,1745149921422,150.0,0.0006,120]
[358443617,1745149921469,150.0,0.00054794,120]
[358443618,1745149921508,1774.44,0.00043835,30]
[358443619,1745149921548,150.0,0.0006,120]
[358443620,1745149921589,1774.6,0.00043835,30]
[358443621,1745149921632,500.0,0.00043835,30]
[358443622,1745149921670,500.0,0.00043835,30]
[358443623,1745149921708,500.0,0.00043835,30]
[358443624,1745149922310,362.51,0.00043835,30]
[358443625,1745149924603,586.43,0.00043835,30]
[358443626,1745149924839,586.43,0.00043835,30]
[358443627,1745149925082,586.43,0.00043835,30]
[358443628,1745149926182,586.43,0.00043835,30]
[358443629,1745149926484,586.43,0.00043835,30]
[358443630,1745149927592,586.43,0.00043835,30]
[358443631,1745149927893,586.43,0.00043835,30]
[358443632,1745149928161,586.43,0.00043835,30]
[358443633,1745149928204,500.0,0.00043835,30]
[358443634,1745149928402,586.43,0.00043835,30]
[358443635,1745149928625,500.0,0.00043835,30]
[358443636,1745149928723,586.43,0.00043835,30]
[358443637,1745149928859,500.0,0.00043835,30]
[358443638,1745149928957,586.43,0.00043835,30]
[358443639,1745149929054,500.0,0.00043835,30]
[358443640,1745149929198,586.43,0.00043835,30]
[358443641,1745149929474,500.0,0.00043835,30]
[358443642,1745149929518,586.43,0.00043835,30]
[358443643,1745149929806,500.0,0.00043835,30]
[358443644,1745149929862,500.0,0.00043835,30]
[358443645,1745149929908,586.43,0.00043835,30]
[358443646,1745149929950,500.0,0.00043835,30]
[358443647,1745149929999,500.0,0.00043835,30]
[358443648,1745149930040,586.43,0.00043835,30]
[358443649,1745149930200,500.0,0.00043835,30]
[358443650,1745149930246,586.43,0.00043835,30]
[358443651,1745149930286,247.58879266,0.00043835,30]
[358443652,1745149930449,500.0,0.00043835,30]
[358443653,1745149930500,586.43,0.00043835,30]
[358443654,1745149930717,500.0,0.00043835,30]
[358443655,1745149930760,586.43,0.00043835,30]
[358443656,1745149930956,500.0,0.00043835,30]
[358443657,1745149930998,586.43,0.00043835,30]
[358443658,1745149931195,500.0,0.00043835,30]
[358443659,1745149931244,586.43,0.00043835,30]
[358443660,1745149931374,361.6873447,0.00059,120]
[358443661,1745149931458,500.0,0.00043835,30]
[358443662,1745149931499,586.43,0.00043835,30]
[358443663,1745149931685,500.0,0.00043835,30]
[358443664,1745149931795,586.43,0.00043835,30]
[358443665,1745149931915,500.0,0.00043835,30]
[358443666,1745149932031,586.43,0.00043835,30]
[358443667,1745149932154,500.0,0.00043835,30]
[358443668,1745149932276,586.64748575,0.00043835,30]
[358443669,1745149932320,500.0,0.00043835,30]
[358443670,1745149932411,420.67531637,0.00043835,30]
[358443671,1745149932526,500.0,0.00043835,30]
[358443672,1745149932751,500.0,0.00043835,30]
[358443673,1745149932986,500.0,0.00043835,30]
[358443674,1745149933223,500.0,0.00043835,30]
[358443675,1745149933531,500.0,0.00043835,30]
[358443676,1745149933619,150.0,0.00055,120]
[358443677,1745149933777,199.78689012,0.00043835,30]
[358443678,1745149934558,500.0,0.00043835,30]
[358443679,1745149934811,500.0,0.00043835,30]
[358443680,1745149934865,150.0,0.00059999,120]
[358443681,1745149934907,407.7143651,0.00048411,30]
[358443682,1745149934947,2000.0,0.00048584,30]
[358443683,1745149935039,508.12350322,0.00054194,60]
[358443684,1745149935078,150.0,0.00059999,120]
[358443685,1745149935121,301.74375975,0.00056159,120]
[358443686,1745149935239,150.0,0.00059999,120]
[358443687,1745149935314,500.0,0.00043835,30]
[358443688,1745149935355,2000.0,0.00048779,30]
[358443689,1745149935429,200.0,0.00059999,120]
[358443690,1745149935554,500.0,0.00043835,30]
[358443691,1745149935653,2000.0,0.00049111,30]
[358443692,1745149935820,500.0,0.00043835,30]
[358443693,1745149935991,2000.0,0.00049267,30]
[358443694,1745149936048,432.01260653,0.00043835,30]
[358443695,1745149936164,500.0,0.00043835,30]
[358443696,1745149936276,150.0,0.00059999,120]
[358443697,1745149936373,500.0,0.00043835,30]
[358443698,1745149936412,2000.0,0.00049505,30]
[358443699,1745149936464,150.0,0.00059999,120]
[358443700,1745149936619,500.0,0.00043835,30]
[358443701,1745149936656,200.0,0.00059999,120]
[358443702,1745149936759,2000.0,0.0004955,30]
[358443703,1745149936865,500.0,0.00043835,30]
[358443704,1745149937155,460.44257274,0.00043835,30]
[358443705,1745149937670,2000.0,0.00049756,30]
[358443706,1745149938033,2000.0,0.0004984,30]
[358443707,1745149938146,500.0,0.00043835,30]
[358443708,1745149938395,516.31543249,0.00043835,30]
[358443709,1745149938438,2000.0,0.00049874,30]
[358443710,1745149938795,2000.0,0.00049921,30]
[358443711,1745149938995,500.0,0.00043835,30]
[358443712,1745149939138,2000.0,0.00050222,60]
[358443713,1745149939288,500.0,0.00043835,30]
[358443714,1745149939466,500.0,0.00043835,30]
[358443715,1745149939570,2000.0,0.0005024,60]
[358443716,1745149939609,500.0,0.00043835,30]
[358443717,1745149939733,500.0,0.00043835,30]
[358443718,1745149939773,500.0,0.00043835,30]
[358443719,1745149939811,1100.0,0.00048437,30]
[358443720,1745149939848,2000.0,0.00050541,60]
[358443721,1745149939968,500.0,0.00043835,30]
[358443722,1745149940005,500.0,0.00043835,30]
[358443723,1745149940121,1100.0,0.00048489,30]
[358443724,1745149940160,201.42277924,0.00059999,120]
[358443725,1745149940201,500.0,0.00043835,30]
[358443726,1745149940247,500.0,0.00043835,30]
[358443727,1745149940284,2777.69,0.00043835,30]
[358443728,1745149940323,500.0,0.00048734,30]
[358443729,1745149940361,2000.0,0.00051398,60]
[358443730,1745149940440,500.0,0.00043835,30]
[358443731,1745149940478,500.0,0.00043835,30]
[358443732,1745149940514,1100.0,0.00048642,30]
[358443733,1745149940552,2777.69,0.00043835,30]
[358443734,1745149940588,500.0,0.00049105,30]
[358443735,1745149940671,172.35194514,0.00043835,30]
[358443736,1745149940710,500.0,0.00043835,30]
[358443737,1745149940759,2777.69,0.00043835,30]
[358443738,1745149940797,1100.0,0.00048806,30]
[358443739,1745149940836,2000.0,0.00051536,60]
[358443740,1745149940900,500.0,0.00050888,60]
[358443741,1745149940937,500.0,0.00043835,30]
[358443742,1745149940984,2777.69,0.00043835,30]
[358443743,1745149941124,500.0,0.00048943,30]
[358443744,1745149941160,500.0,0.00043835,30]
[358443745,1745149941196,1100.0,0.00049253,30]
[358443746,1745149941232,2000.0,0.0005185,60]
[358443747,1745149941268,2777.69,0.00043835,30]
[358443748,1745149941302,503.75407807,0.00053591,60]
[358443749,1745149941411,500.0,0.00043835,30]
[358443750,1745149941468,2777.69,0.00043835,30]
[358443751,1745149941504,500.0,0.000504,60]
[358443752,1745149941541,1100.0,0.00049437,30]
[358443753,1745149941580,2000.0,0.00051858,60]
[358443754,1745149941629,500.0,0.00059999,120]
[358443755,1745149941667,500.0,0.00043835,30]
[358443756,1745149941705,2777.69,0.00043835,30]
[358443757,1745149941837,1100.0,0.00050511,60]
[358443758,1745149941872,500.0,0.00052002,60]
[358443759,1745149941911,500.0,0.00043835,30]
[358443760,1745149941949,2000.0,0.00051859,60]
[358443761,1745149941984,2777.69,0.00043835,30]
[358443762,1745149942019,500.0,0.00059999,120]
[358443763,1745149942110,500.0,0.00043835,30]
[358443764,1745149942174,500.0,0.00059999,120]
[358443765,1745149942211,2777.69,0.00043835,30]
[358443766,1745149942251,1100.0,0.00050694,60]
[358443767,1745149942286,500.0,0.00052609,60]
[358443768,1745149942322,2000.0,0.00052241,60]
[358443769,1745149942357,500.0,0.00043835,30]
[358443770,1745149942393,500.0,0.00059999,120]
[358443771,1745149942428,369.81723222,0.00059,120]
[358443772,1745149942469,2777.69,0.00043835,30]
[358443773,1745149942575,542.01376816,0.00055597,120]
[358443774,1745149942610,584.893135,0.00043835,30]
[358443775,1745149942645,500.0,0.00043835,30]
[358443776,1745149942686,2000.0,0.00053256,60]
[358443777,1745149942776,2777.69,0.00043835,30]
[358443778,1745149942812,326.41588351,0.00059999,120]
[358443779,1745149942848,500.0,0.00043835,30]
[358443780,1745149943021,2777.69,0.00043835,30]
[358443781,1745149943154,2000.0,0.0005344,60]
[358443782,1745149943195,500.0,0.00043835,30]
[358443783,1745149943234,1100.0,0.00051406,60]
[358443784,1745149943287,2777.69,0.00043835,30]
[358443785,1745149943360,500.0,0.00043835,30]
[358443786,1745149943398,2000.0,0.00053442,60]
[358443787,1745149943499,1100.0,0.00052687,60]
[358443788,1745149943541,2777.69,0.00043835,30]
[358443789,1745149943636,500.0,0.00043835,30]
[358443790,1745149943685,2000.0,0.00053695,60]
[358443791,1745149943771,500.0,0.00048474,30]
[358443792,1745149943809,2777.69,0.00043835,30]
[358443793,1745149943863,500.0,0.00043835,30]
[358443794,1745149943900,1100.0,0.00053261,60]
[358443795,1745149944005,2000.0,0.0005419,60]
[358443796,1745149944045,2777.69,0.00043835,30]
[358443797,1745149944082,500.0,0.00043835,30]
[358443798,1745149944134,500.0,0.00053475,60]
[358443799,1745149944230,1100.0,0.00053378,60]
[358443800,1745149944269,2777.69,0.00043835,30]
[358443801,1745149944307,500.0,0.00043835,30]
[358443802,1745149944354,2000.0,0.00055022,120]
[358443803,1745149944478,500.0,0.00053857,60]
[358443804,1745149944522,500.0,0.00050617,60]
[358443805,1745149944560,2777.69,0.00043835,30]
[358443806,1745149944596,500.0,0.00043835,30]
[358443807,1745149944632,500.0,0.00043835,30]
[358443808,1745149944668,1100.0,0.00053411,60]
[358443809,1745149944717,2000.0,0.0005503,120]
[358443810,1745149944752,150.0,0.00059999,120]
[358443811,1745149944788,2777.69,0.00043835,30]
[358443812,1745149944824,500.0,0.00043835,30]
[358443813,1745149944860,476.54,0.00043835,30]
[358443814,1745149944954,1100.0,0.00053606,60]
[358443815,1745149945020,2777.69,0.00043835,30]
[358443816,1745149945081,500.0,0.00043835,30]
[358443817,1745149945121,2000.0,0.00056348,120]
[358443818,1745149945164,500.0,0.00050773,60]
[358443819,1745149945279,500.0,0.00043835,30]
[358443820,1745149945321,1100.0,0.00053918,60]
[358443821,1745149945372,500.0,0.00051141,60]
[358443822,1745149945410,500.0,0.00054686,60]
[358443823,1745149945449,3071.77231799,0.00056946,120]
[358443824,1745149945488,500.0,0.00051609,60]
[358443825,1745149945526,500.0,0.00043835,30]
[358443826,1745149945607,2777.69,0.00043835,30]
[358443827,1745149945659,1100.0,0.00054135,60]
[358443828,1745149945726,500.0,0.00054285,60]
[358443829,1745149945764,647.70026884,0.00055481,120]
[358443830,1745149945799,500.0,0.00043835,30]
[358443831,1745149945855,2777.69,0.00043835,30]
[358443832,1745149946043,150.0,0.00059999,120]
[358443833,1745149946080,1100.0,0.00055282,120]
[358443834,1745149946117,546.17538498,0.00055223,120]
[358443835,1745149946152,155.71074119,0.00043835,30]
[358443836,1745149946187,2777.69,0.00043835,30]
[358443837,1745149946227,150.0,0.00059999,120]
[358443838,1745149946292,791.34576862,0.00053364,60]
[358443839,1745149946351,2777.82428285,0.00043835,30]
[358443840,1745149946410,1100.0,0.00055447,120]
[358443841,1745149946448,500.0,0.00050019,60]
[358443842,1745149946579,200.0,0.00059999,120]
[358443843,1745149946753,500.0,0.00050138,60]
[358443844,1745149947094,500.0,0.00043835,30]
[358443845,1745149947131,500.0,0.00052623,60]
[358443846,1745149947284,1100.0,0.00055597,120]
[358443847,1745149947340,500.0,0.00043835,30]
[358443848,1745149947446,500.0,0.00052859,60]
[358443849,1745149947577,500.0,0.00043835,30]
[358443850,1745149947629,1100.0,0.00056007,120]
[358443851,1745149947679,150.0,0.00059999,120]
[358443852,1745149947768,500.0,0.00053864,60]
[358443853,1745149947811,500.0,0.00043835,30]
[358443854,1745149947888,150.0,0.00059999,120]
[358443855,1745149947949,1100.0,0.00056237,120]
[358443856,1745149948198,1157.98,0.00043835,30]
[358443857,1745149948237,500.0,0.00043835,30]
[358443858,1745149948282,500.0,0.00043835,30]
[358443859,1745149948320,500.0,0.00054423,60]
[358443860,1745149948357,150.0,0.00059999,120]
[358443861,1745149948395,1157.98,0.00043835,30]
[358443862,1745149948434,500.0,0.00043835,30]
[358443863,1745149948473,150.0,0.00059999,120]
[358443864,1745149948515,1100.0,0.00056751,120]
[358443865,1745149948555,500.0,0.00043835,30]
[358443866,1745149948593,522.45803562,0.00056697,120]
[358443867,1745149948629,150.0,0.00059999,120]
[358443868,1745149948667,500.0,0.00043835,30]
[358443869,1745149948705,1157.98,0.00043835,30]
[358443870,1745149948742,500.0,0.00043835,30]
[358443871,1745149948778,192.04724618,0.00059999,120]
[358443872,1745149948813,1100.0,0.00057102,120]
[358443873,1745149948848,1157.98,0.00043835,30]
[358443874,1745149948884,500.0,0.00043835,30]
[358443875,1745149948961,1157.98,0.00043835,30]
[358443876,1745149949029,1100.0,0.00057167,120]
[358443877,1745149949066,500.0,0.00054719,60]
[358443878,1745149949103,500.0,0.00043835,30]
[358443879,1745149949197,1157.98,0.00043835,30]
[358443880,1745149949235,500.0,0.00043835,30]
[358443881,1745149949273,152.2167816,0.00043835,30]
[358443882,1745149949310,342.25311896,0.00052144,60]
[358443883,1745149949351,1100.0,0.0005727,120]
[358443884,1745149949426,1157.98,0.00043835,30]
[358443885,1745149949469,500.0,0.00043835,30]
[358443886,1745149949759,1157.98,0.00043835,30]
[358443887,1745149949798,500.0,0.00043835,30]
[358443888,1745149949835,1100.0,0.00057372,120]
[358443889,1745149949886,150.0,0.00059999,120]
[358443890,1745149949927,1157.98,0.00043835,30]
[358443891,1745149949966,500.0,0.00043835,30]
[358443892,1745149950035,150.0,0.00059999,120]
[358443893,1745149950113,1423.92152641,0.00057375,120]
[358443894,1745149950150,600.0,0.00048799,30]
[358443895,1745149950188,500.0,0.00043835,30]
[358443896,1745149950227,200.0,0.00059999,120]
[358443897,1745149950427,500.0,0.00043835,30]
[358443898,1745149950475,600.0,0.00049064,30]
[358443899,1745149950513,1157.98,0.00043835,30]
[358443900,1745149950552,500.0,0.00043835,30]
[358443901,1745149950658,500.0,0.00043835,30]
[358443902,1745149950746,1157.98,0.00043835,30]
[358443903,1745149950784,500.0,0.00043835,30]
[358443904,1745149950841,600.0,0.00049453,30]
[358443905,1745149950904,500.0,0.00043835,30]
[358443906,1745149950941,500.0,0.00048672,30]
[358443907,1745149950978,1157.98,0.00043835,30]
[358443908,1745149951015,500.0,0.00043835,30]
[358443909,1745149951144,151.92467823,0.00043835,30]
[358443910,1745149951190,600.0,0.00049589,30]
[358443911,1745149951229,1157.98,0.00043835,30]
[358443912,1745149951266,500.0,0.00050325,60]